fUST/lending_fUST_20251024
["ID","MTS","AMOUNT","RATE_DAILY","PERIOD"]
[392256642,1761283202468,300.0,0.00020734,2]
[392256643,1761283202895,300.0,0.00020734,2]
[392256644,1761283203320,300.0,0.00020734,2]
[392256645,1761283203547,3028.02628213,0.00020735,2]
[392256646,1761283203576,1971.97371787,0.00020735,2]
[392256647,1761283205978,1200.0,0.00020734,2]
[392256648,1761283206722,2012.5136605,0.00020613,2]
[392256649,1761283212505,150.0,0.00019512,2]
[392256650,1761283212641,179.16,0.00020725,2]
[392256651,1761283212913,150.0,0.00020441,2]
[392256652,1761283227032,4336.36262163,0.00020735,2]
[392256653,1761283227058,663.63737837,0.00020735,2]
[392256654,1761283229842,196.0,0.00016,2]
[392256655,1761283229909,329.90550486,0.000181,2]
[392256656,1761283244120,204.0689858,0.00019905,2]
[392256657,1761283250013,5000.0,0.00020735,2]
[392256658,1761283263282,300.0,0.00020734,2]
[392256660,1761283272514,3306.39813097,0.00020735,2]
[392256661,1761283272547,1693.60186903,0.00020735,2]
[392256662,1761283286358,150.0,0.00019552,2]
[392256663,1761283286789,150.0,0.00020483,2]
[392256664,1761283295782,2539.22407238,0.00020735,2]
[392256666,1761283323172,300.0,0.00020734,2]
[392256667,1761283329192,-7640.23151867,0.00020735,2]
[392256668,1761283329341,-10000.01,0.00020735,2]
[392256669,1761283329478,-10000.01,0.00020735,2]
[392256670,1761283329617,-10000.01,0.00020735,2]
[392256671,1761283329732,-10000.01,0.00020735,2]
[392256672,1761283331690,-2012.5136605,0.0002062,2]
[392256673,1761283331736,-5974.982679,0.00020735,2]
[392256674,1761283331809,-10000.01,0.00020735,2]
[392256675,1761283331949,-10000.01,0.00020735,2]
[392256676,1761283334915,-3721.37043454,0.00020735,2]
[392256677,1761283334946,-160.0,0.00020735,2]
[392256678,1761283334976,-1000.0,0.00020735,2]
[392256679,1761283335059,-237.26913092,0.00020735,2]
[392256680,1761283335126,-762.73086908,0.00020735,2]
[392256681,1761283335159,-1000.0,0.00020735,2]
[392256682,1761283335191,-1000.0,0.00020735,2]
[392256683,1761283335221,-192.71428236,0.00020735,2]
[392256684,1761283358365,150.0,0.00019555,2]
[392256685,1761283358787,150.0,0.00020486,2]
[392256686,1761283382731,3789.11969712,0.00020732,2]
[392256687,1761283382756,9719.14221048,0.00020732,2]
[392256691,1761283400561,280.86778952,0.00020635,2]
[392256692,1761283400587,10000.01,0.00020635,2]
[392256693,1761283400613,10000.01,0.00020635,2]
[392256694,1761283400638,10000.01,0.00020635,2]
[392256695,1761283400663,10000.01,0.00020635,2]
[392256696,1761283400688,10000.01,0.00020635,2]
[392256697,1761283400711,10000.01,0.00020635,2]
[392256698,1761283400736,10000.01,0.00020635,2]
[392256699,1761283400761,10000.01,0.00020635,2]
[392256700,1761283409493,-178.09,0.00020625,10]
[392256701,1761283412686,-5554.71030288,0.00020635,2]
[392256702,1761283412776,-10000.01,0.00020635,2]
[392256703,1761283412923,-10000.01,0.00020635,2]
[392256704,1761283413049,-10000.01,0.00020635,2]
[392256705,1761283413728,-10000.01,0.00020635,2]
[392256706,1761283413840,-10000.01,0.00020635,2]
[392256707,1761283413957,-10000.01,0.00020635,2]
[392256737,1761283608122,-268.85816276,0.00018969,2]
[392256738,1761283610839,169.0590691,9.266e-05,2]
[392256742,1761283626873,-5000.0,0.00018779,2]
[392256743,1761283626913,-0.01,0.00018969,2]
[392256744,1761283629940,-5000.0,0.00018591,2]
[392256745,1761283629983,-0.01,0.00018969,2]
[392256748,1761283630322,-159.98,0.00018969,2]
[392256749,1761283630352,-300.0,0.00018969,2]
[392256750,1761283630386,-4080.05,0.0001897,2]
[392256751,1761283630442,-919.95,0.0001897,2]
[392256752,1761283630652,-416.57716247,0.00019066,2]
[392256753,1761283630682,-300.0,0.00019161,2]
[392256754,1761283630712,-300.0,0.00019161,2]
[392256755,1761283630743,-300.0,0.00019161,2]
[392256756,1761283630774,-1200.0,0.00019161,2]
[392256757,1761283630808,-150.0,0.00019552,2]
[392256758,1761283630837,-500.0,0.00019973,2]
[392256759,1761283630868,-500.0,0.00019973,2]
[392256760,1761283630899,-500.0,0.00019973,2]
[392256761,1761283630930,-383.83336246,0.00019989,2]
[392256762,1761283630959,-185.38667848,0.00019989,2]
[392256763,1761283630991,-28.41559318,0.00019989,2]
[392256764,1761283631180,-471.58440682,0.00019989,2]
[392256765,1761283631530,-407.1714661,0.00019989,2]
[392256766,1761283631562,-500.0,0.00019989,2]
[392256767,1761283631593,-500.0,0.00019989,2]
[392256768,1761283631626,-218.24282945,0.00019989,2]
[392256769,1761283631657,-500.0,0.00019989,2]
[392256770,1761283631691,-296.79145053,0.00019989,2]
[392256771,1761283631722,-544.14463229,0.00019989,2]
[392256772,1761283631850,-4067.30924326,0.0001999,2]
[392256773,1761283631879,-10000.01,0.0001999,2]
[392256774,1761283632347,-10000.01,0.0001999,2]
[392256775,1761283632669,-454.27289081,0.00019889,4]
[392256778,1761283632707,-9091.46421838,0.0001999,2]
[392256779,1761283632910,-10000.01,0.0001999,2]
[392256780,1761283633105,-10000.01,0.0001999,2]
[392256781,1761283635682,-10000.01,0.0001999,2]
[392256782,1761283635811,-10000.01,0.0001999,2]
[392256783,1761283657797,-5000.0,0.00019592,2]
[392256784,1761283657835,-0.01,0.0001979,2]
[392256785,1761283658088,-4999.99,0.0001979,2]
[392256786,1761283658130,-0.03,0.00019972,2]
[392256787,1761283658212,-1199.97,0.00019972,2]
[392256788,1761283658244,-500.0,0.00019973,2]
[392256789,1761283658300,-6600.07,0.0001999,2]
[392256790,1761283658328,-10000.01,0.0001999,2]
[392256791,1761283658475,-10000.01,0.0001999,2]
[392256792,1761283658608,-241.07653836,0.0001999,2]
[392256793,1761283661753,500.0,0.00019973,2]
[392256795,1761283667411,9017.85692328,0.00018,2]
[392256796,1761283667437,2131.81469849,0.00018,2]
[392256797,1761283667574,162.3001708,0.0001969,2]
[392256798,1761283668775,5000.0,0.0001999,2]
[392256799,1761283671367,2705.89513071,0.00018,2]
[392256800,1761283671392,1810.65323986,0.00018,2]
[392256803,1761283677476,5000.0,0.0001999,2]
[392256811,1761283693141,3189.35676014,0.0001999,2]
[392256812,1761283693165,1810.64323986,0.0001999,2]
[392256815,1761283696862,150.0,0.0001984,2]
[392256818,1761283701575,5000.0,0.0001999,2]
[392256824,1761283709587,2522.4131902,0.00019178,2]
[392256825,1761283709939,196.0,0.00016,2]
[392256826,1761283710005,196.0,0.00016064,2]
[392256827,1761283710112,124.95356994,0.00016127,2]
[392256828,1761283710137,71.04643006,0.00016127,2]
[392256829,1761283710188,196.0,0.00016191,2]
[392256830,1761283710260,196.0,0.00016255,2]
[392256831,1761283710350,196.0,0.00016318,2]
[392256832,1761283710443,196.0,0.00016382,2]
[392256833,1761283710510,196.0,0.00016445,2]
[392256834,1761283710576,196.0,0.00016509,2]
[392256835,1761283710643,196.0,0.00016573,2]
[392256836,1761283710716,196.0,0.00016636,2]
[392256837,1761283710798,196.0,0.000167,2]
[392256838,1761283710858,196.0,0.00016764,2]
[392256839,1761283710921,196.0,0.00016827,2]
[392256840,1761283711091,196.0,0.00016891,2]
[392256841,1761283711136,196.0,0.00016955,2]
[392256842,1761283711168,196.0,0.00017018,2]
[392256843,1761283711202,196.0,0.00017082,2]
[392256844,1761283711258,196.0,0.00017145,2]
[392256845,1761283711326,196.0,0.00017209,2]
[392256846,1761283711389,196.0,0.00017273,2]
[392256847,1761283711467,196.0,0.00017336,2]
[392256848,1761283711529,196.0,0.000174,2]
[392256849,1761283711599,196.0,0.00017464,2]
[392256850,1761283711671,196.0,0.00017527,2]
[392256851,1761283711743,196.0,0.00017591,2]
[392256852,1761283711814,196.0,0.00017655,2]
[392256853,1761283711883,196.0,0.00017718,2]
[392256854,1761283711974,196.0,0.00017782,2]
[392256855,1761283712049,196.0,0.00017845,2]
[392256856,1761283712126,196.0,0.00017909,2]
[392256857,1761283712202,196.0,0.00017973,2]
[392256858,1761283712277,196.0,0.00018036,2]
[392256859,1761283712343,306.30540082,0.000181,2]
[392256860,1761283713608,3742.65816912,0.00015,2]
[392256861,1761283713636,10000.01,0.00015,2]
[392256862,1761283713664,8137.81127986,0.00015,2]
[392256864,1761283717236,1862.19872014,0.0001999,2]
[392256865,1761283717261,3137.80127986,0.0001999,2]
[392256872,1761283725636,5000.0,0.0001999,2]
[392256876,1761283741227,1862.20872014,0.0001999,2]
[392256877,1761283741252,3137.79127986,0.0001999,2]
[392256878,1761283744962,165.23434652,0.0001999,2]
[392256879,1761283749094,300000.00883723,0.00035955,30]
[392256880,1761283749614,5000.0,0.0001999,2]
[392256886,1761283764574,1696.98437362,0.0001999,2]
[392256887,1761283764600,3303.01562638,0.0001999,2]
[392256894,1761283773079,5000.0,0.0001999,2]
[392256900,1761283782445,150.0,0.00019468,2]
[392256901,1761283783220,1546.99437362,0.000199,2]
[392256902,1761283783258,1246.12819559,0.000199,2]
[392256905,1761283787878,5000.0,0.0001999,2]
[392256912,1761283796592,3753.88180441,0.0001999,2]
[392256913,1761283796619,1246.11819559,0.0001999,2]
[392256916,1761283811577,5000.0,0.0001999,2]
[392256920,1761283820200,2309.67302831,0.0001999,2]
[392256926,1761283829896,196.0,0.00016,2]
[392256927,1761283829957,196.0,0.00016075,2]
[392256928,1761283830018,196.0,0.0001615,2]
[392256929,1761283830080,196.0,0.00016225,2]
[392256930,1761283830145,196.0,0.000163,2]
[392256931,1761283830215,196.0,0.00016375,2]
[392256932,1761283830281,196.0,0.0001645,2]
[392256933,1761283830352,72.2187761,0.00016525,2]
[392256934,1761283830376,123.7812239,0.00016525,2]
[392256935,1761283830433,196.0,0.000166,2]
[392256936,1761283830495,196.0,0.00016675,2]
[392256937,1761283830568,196.0,0.0001675,2]
[392256938,1761283830630,196.0,0.00016825,2]
[392256939,1761283830692,196.0,0.000169,2]
[392256940,1761283830787,196.0,0.00016975,2]
[392256941,1761283830849,196.0,0.0001705,2]
[392256942,1761283830925,196.0,0.00017125,2]
[392256943,1761283830979,196.0,0.000172,2]
[392256944,1761283831039,196.0,0.00017275,2]
[392256945,1761283831104,196.0,0.0001735,2]
[392256946,1761283831168,196.0,0.00017425,2]
[392256947,1761283831227,196.0,0.000175,2]
[392256948,1761283831283,196.0,0.00017575,2]
[392256949,1761283831348,196.0,0.0001765,2]
[392256950,1761283831411,196.0,0.00017725,2]
[392256951,1761283831470,196.0,0.000178,2]
[392256952,1761283831535,196.0,0.00017875,2]
[392256953,1761283831596,196.0,0.0001795,2]
[392256954,1761283831661,196.0,0.00018025,2]
[392256955,1761283831722,250.51527004,0.000181,2]
[392257004,1761283832402,-300.0,0.00019999,2]
[392257006,1761283832412,-300.0,0.00019999,2]
[392257008,1761283832421,-300.0,0.00019999,2]
[392257010,1761283832431,-300.0,0.00019999,2]
[392257012,1761283832441,-253.53376306,0.00019999,2]
[392257014,1761283832464,-946.46623694,0.00019999,2]
[392257016,1761283832473,-300.0,0.0002,2]
[392257018,1761283832483,-300.0,0.0002,2]
[392257020,1761283832493,-423.46556393,0.00020035,2]
[392257022,1761283832502,-5000.0,0.00020248,2]
[392257024,1761283832515,-239.55,0.00020395,2]
[392257039,1761283832658,-153.0,0.00020452,2]
[392257040,1761283832668,-5000.0,0.0002052,2]
[392257041,1761283832677,-554.83730184,0.00020577,2]
[392257042,1761283832687,-788.49291725,0.0002061,2]
[392257043,1761283832696,-573.81,0.00020625,3]
[392257044,1761283832706,-286.9,0.00020625,3]
[392257045,1761283832715,-860.73,0.00020625,3]
[392257046,1761283832724,-1438.06,0.00020625,10]
[392257047,1761283832735,-1198.38,0.00020625,10]
[392257048,1761283832744,-268.68335372,0.00020634,2]
[392257049,1761283832753,-171.57162581,0.00020634,2]
[392257050,1761283832762,-500.0,0.00020634,2]
[392257051,1761283832771,-500.0,0.00020634,2]
[392257052,1761283832780,-224164.2819076,0.00020635,2]
[392257053,1761283832790,-3570.2261425,0.00020694,2]
[392257054,1761283832799,-153.0,0.000207,2]
[392257055,1761283832808,-500.0,0.00020734,2]
[392257056,1761283832818,-153.0,0.00020752,2]
[392257057,1761283832827,-800.0,0.00020762,2]
[392257058,1761283832836,-298.98820004,0.00020795,2]
[392257060,1761283835761,5000.0,0.0001999,2]
[392257075,1761283838267,-300.0,0.0002,2]
[392257076,1761283838277,-294.72798959,0.00020625,10]
[392257104,1761283840695,-703.92201041,0.00020625,10]
[392257105,1761283840706,-1854.58271788,0.00020754,2]
[392257106,1761283840715,-980.56,0.000208,2]
[392257107,1761283840725,-210.13819289,0.0002082,2]
[392257108,1761283840735,-1000.0,0.00020835,2]
[392257109,1761283840744,-1000.0,0.00020835,2]
[392257110,1761283840754,-1000.0,0.00020835,2]
[392257111,1761283840762,-1000.0,0.00020835,2]
[392257112,1761283840772,-1000.0,0.00020835,2]
[392257113,1761283840781,-1000.0,0.00020835,2]
[392257114,1761283840790,-1000.0,0.00020835,2]
[392257115,1761283840799,-1000.0,0.00020835,2]
[392257116,1761283840808,-1000.0,0.00020835,2]
[392257117,1761283840817,-1000.0,0.00020835,2]
[392257118,1761283840826,-1000.0,0.00020835,2]
[392257119,1761283840836,-1000.0,0.00020835,2]
[392257120,1761283840845,-2857.71637301,0.00020838,2]
[392257121,1761283840854,-431.72,0.00020862,2]
[392257122,1761283840864,-178.617,0.00020862,2]
[392257123,1761283840874,-690.83143486,0.00020935,2]
[392257124,1761283840883,-1228.14477308,0.00020935,2]
[392257125,1761283840892,-1917.05723173,0.00020935,2]
[392257126,1761283840901,-576.04679574,0.00020935,2]
[392257127,1761283840910,-1024.08319242,0.00020935,2]
[392257128,1761283840920,-1598.52985818,0.00020935,2]
[392257129,1761283840929,-1484.59629089,0.00020935,2]
[392257130,1761283840939,-2319.68170451,0.00020935,2]
[392257131,1761283840948,-3337.00131284,0.00020935,2]
[392257132,1761283840959,-327.01110536,0.00020935,2]
[392257133,1761283840969,-373.35325058,0.00020935,2]
[392257134,1761283840978,-16854.95598152,0.00020938,2]
[392257135,1761283840991,-87061.8059284,0.00020938,2]
[392257136,1761283841001,-331.0,0.00020938,2]
[392257137,1761283841011,-331.0,0.00020938,2]
[392257138,1761283841020,-500.0,0.00020949,2]
[392257139,1761283841030,-500.0,0.00020949,2]
[392257140,1761283841040,-500.0,0.00020949,2]
[392257141,1761283841049,-397.77,0.00020949,2]
[392257142,1761283841059,-410.1494985,0.00020949,2]
[392257143,1761283841069,-336.0,0.00020961,2]
[392257144,1761283841078,-500.0,0.00020965,2]
[392257145,1761283841088,-500.0,0.00020973,2]
[392257146,1761283841099,-500.0,0.00020973,2]
[392257147,1761283841108,-500.64067261,0.00020973,2]
[392257148,1761283841119,-500.0,0.00020973,2]
[392257149,1761283841128,-500.0,0.00020973,2]
[392257150,1761283841137,-501.60552877,0.00020973,2]
[392257151,1761283841147,-504.43562081,0.00020973,2]
[392257152,1761283841156,-160.1845553,0.00020973,2]
[392257153,1761283841166,-500.0,0.00020973,2]
[392257154,1761283841175,-500.0,0.00020973,2]
[392257155,1761283841185,-500.0,0.00020973,2]
[392257156,1761283841194,-500.0,0.00020973,2]
[392257157,1761283841202,-500.0,0.00020973,2]
[392257158,1761283841212,-500.0,0.0002102,2]
[392257159,1761283841221,-336.0,0.0002104,2]
[392257160,1761283841231,-336.0,0.0002105,2]
[392257161,1761283841240,-336.0,0.00021052,2]
[392257162,1761283841250,-310.19982159,0.0002106,2]
[392257163,1761283841260,-420.53212657,0.00021075,2]
[392257165,1761283841269,-687.0,0.0002116,2]
[392257166,1761283841281,-336.0,0.00021168,2]
[392257167,1761283841291,-222.387544,0.000212,2]
[392257168,1761283841300,-153.0,0.000212,2]
[392257169,1761283841310,-401.9540843,0.000212,2]
[392257170,1761283841320,-336.0,0.00021209,2]
[392257172,1761283841329,-336.0,0.00021214,2]
[392257173,1761283841338,-336.0,0.00021215,2]
[392257174,1761283841347,-151.73430787,0.00021218,2]
[392257725,1761283852238,705.71350606,0.0001999,2]
[392257726,1761283852265,3052.04669203,0.0001999,2]
[392257728,1761283861339,5000.0,0.0001999,2]
[392257729,1761283861597,150.0,0.00019515,2]
[392257732,1761283931425,167.84182264,0.000199,2]
[392257733,1761283940245,10000.0,0.0001999,2]
[392257734,1761283943230,0.01,0.00019591,2]
[392257735,1761283945563,-149.99,0.00019591,2]
[392257736,1761283947733,9700.03,0.00019999,2]
[392257737,1761283949789,286.92576351,0.00016,2]
[392257738,1761283975021,29890.21163183,0.00015,2]
[392257739,1761283976255,4335.18,0.00018,2]
[392257740,1761284000089,300.0,0.00018,2]
[392257741,1761284007870,200.0,0.00018258,7]
[392257742,1761284011458,300.0,0.00018,2]
[392257743,1761284023194,300.0,0.00018,2]
[392257744,1761284033550,300.0,0.00018,2]
[392257745,1761284043929,300.0,0.00018,2]
[392257746,1761284055497,300.0,0.00018,2]
[392257747,1761284056591,300.0,0.00018,2]
[392257748,1761284066521,300.0,0.00018,2]
[392257749,1761284068531,300.0,0.00018,2]
[392257750,1761284077732,300.0,0.00018,2]
[392257751,1761284080283,300.0,0.00018,2]
[392257752,1761284088325,300.0,0.00018,2]
[392257753,1761284091370,300.0,0.00018,2]
[392257754,1761284222144,173.22418358,0.0003594,60]
[392257755,1761284256186,-5000.0,0.00019106,2]
[392257756,1761284261930,-427.13509005,0.00019153,2]
[392257757,1761284261962,-415.13565222,0.000192,2]
[392257758,1761284261995,-1200.0,0.00019298,2]
[392257759,1761284262028,-300.0,0.00019298,2]
[392257760,1761284272115,-160.83,0.00019487,2]
[392257761,1761284272145,-1200.0,0.00019797,2]
[392257762,1761284272175,-300.0,0.00019798,2]
[392257763,1761284272208,-300.0,0.00019798,2]
[392257764,1761284272242,-180.38608243,0.00019799,2]
[392257765,1761284350532,162.6,0.00019558,2]
[392257766,1761284382241,666.0,0.00019524,2]
[392257767,1761284431126,160.53,0.00019521,2]
[392257768,1761284460032,-5000.0,0.00019799,2]
[392257769,1761284463163,-418.59238825,0.00019849,2]
[392257770,1761284463197,-859.75149822,0.00019899,2]
[392257771,1761284463230,-1688.7533485,0.0001999,2]
[392257772,1761284463358,4065.81553006,0.0001965,2]
[392257773,1761284472169,-934.18446994,0.0001965,2]
[392257774,1761284472293,5000.0,0.00019453,2]
[392257775,1761284511526,-172.78633,0.000195,2]
[392257776,1761284514527,168.03,0.00019545,2]
[392257778,1761284530513,300.0,0.000195,2]
[392257782,1761284541511,300.0,0.000195,2]
[392257783,1761284549729,196.0,0.00016,2]
[392257784,1761284549794,196.0,0.00016175,2]
[392257785,1761284549864,196.0,0.0001635,2]
[392257786,1761284549951,196.0,0.00016525,2]
[392257787,1761284550043,196.0,0.000167,2]
[392257788,1761284550174,196.0,0.00016875,2]
[392257789,1761284550209,196.0,0.0001705,2]
[392257790,1761284550243,196.0,0.00017225,2]
[392257791,1761284550324,196.0,0.000174,2]
[392257792,1761284554486,196.0,0.00017575,2]
[392257793,1761284554585,196.0,0.0001775,2]
[392257794,1761284554664,196.0,0.00017925,2]
[392257795,1761284554885,221.19399557,0.000181,2]
[392257796,1761284595943,165.89,0.00019532,2]
[392257797,1761284604588,-185.88790647,0.00020044,2]
[392257798,1761284604621,-4628.23418706,0.00020246,2]
[392257799,1761284604856,-371.76581294,0.00020246,2]
[392257800,1761284604891,-331.78,0.00020462,2]
[392257801,1761284605038,-300.0,0.00020471,2]
[392257802,1761284605071,-300.0,0.00020472,2]
[392257803,1761284605102,-1200.0,0.00020472,2]
[392257804,1761284605134,-1200.0,0.00020472,2]
[392257805,1761284605165,-180.38608243,0.00020473,2]
[392257806,1761284605199,-486.54405843,0.00020473,2]
[392257807,1761284605228,-418.68085865,0.00020473,2]
[392257808,1761284605258,-134.7963751,0.00020525,3]
[392257809,1761284605353,-152.1036249,0.00020525,3]
[392257810,1761284605383,-860.72,0.00020525,3]
[392257811,1761284605413,-500.0,0.00020529,2]
[392257812,1761284605444,-500.0,0.00020529,2]
[392257813,1761284605475,-500.0,0.00020529,2]
[392257814,1761284605506,-500.0,0.00020529,2]
[392257815,1761284605540,-500.0,0.00020529,2]
[392257816,1761284605571,-183.41899847,0.00020529,2]
[392257817,1761284605616,-500.0,0.00020529,2]
[392257818,1761284605661,-500.0,0.00020529,2]
[392257819,1761284605705,-107.52475326,0.00020529,2]
[392257820,1761284606021,-392.47524674,0.00020529,2]
[392257821,1761284606068,-500.0,0.00020529,2]
[392257822,1761284606111,-500.0,0.00020529,2]
[392257823,1761284606160,-500.0,0.00020529,2]
[392257824,1761284606205,-500.0,0.00020529,2]
[392257825,1761284606247,-500.0,0.00020529,2]
[392257826,1761284606288,-500.0,0.00020529,2]
[392257827,1761284606328,-500.0,0.00020529,2]
[392257828,1761284606368,-500.0,0.00020529,2]
[392257829,1761284606410,-500.0,0.00020529,2]
[392257830,1761284606610,-500.0,0.00020529,2]
[392257831,1761284606655,-500.0,0.00020529,2]
[392257832,1761284606700,-500.0,0.00020529,2]
[392257833,1761284606745,-366.85249937,0.00020529,2]
[392257834,1761284606787,-500.0,0.00020529,2]
[392257835,1761284606835,-500.0,0.00020529,2]
[392257836,1761284606885,-500.0,0.00020529,2]
[392257837,1761284606932,-500.0,0.00020529,2]
[392257838,1761284606977,-500.0,0.00020529,2]
[392257839,1761284607023,-500.0,0.00020529,2]
[392257840,1761284607244,-500.0,0.00020529,2]
[392257841,1761284607290,-483.54894495,0.00020529,2]
[392257842,1761284607335,-556.20081977,0.00020529,2]
[392257843,1761284607374,-500.0,0.00020529,2]
[392257844,1761284607416,-500.0,0.00020529,2]
[392257845,1761284607457,-500.0,0.00020529,2]
[392257846,1761284607505,-500.0,0.00020529,2]
[392257847,1761284607548,-500.0,0.00020529,2]
[392257848,1761284607590,-500.0,0.00020529,2]
[392257849,1761284607719,-386.50970639,0.00020529,2]
[392257850,1761284607913,-147.49105778,0.00020529,2]
[392257851,1761284607964,-500.0,0.00020529,2]
[392257852,1761284608017,-500.0,0.00020529,2]
[392257853,1761284608073,-430.0,0.00020529,2]
[392257854,1761284608123,-505.91409097,0.00020529,2]
[392257855,1761284608178,-246.21259395,0.00020529,2]
[392257856,1761284608227,-500.0,0.00020529,2]
[392257857,1761284608272,-500.0,0.00020529,2]
[392257858,1761284608319,-500.0,0.00020529,2]
[392257859,1761284608367,-500.0,0.00020529,2]
[392257860,1761284608417,-500.0,0.00020529,2]
[392257861,1761284608521,-500.0,0.00020529,2]
[392257862,1761284608567,-500.0,0.00020529,2]
[392257863,1761284608616,-500.0,0.00020529,2]
[392257864,1761284608660,-418.65149881,0.00020529,2]
[392257865,1761284608709,-500.0,0.00020529,2]
[392257866,1761284608759,-500.0,0.00020529,2]
[392257867,1761284608808,-500.0,0.00020529,2]
[392257868,1761284608851,-500.0,0.00020529,2]
[392257869,1761284608897,-523.28137915,0.00020531,2]
[392257870,1761284608940,-188.0783476,0.00020534,2]
[392257871,1761284614790,739.98754888,0.00019178,2]
[392257872,1761284614829,4260.01245112,0.00019178,2]
[392257873,1761284617195,5000.0,0.00020535,2]
[392257874,1761284630463,3803.353317,0.00020473,2]
[392257875,1761284640108,5000.0,0.00020535,2]
[392257876,1761284644776,300.0,0.00020534,2]
[392257877,1761284651501,300.0,0.000205,2]
[392257878,1761284655506,4400.01,0.00020287,2]
[392257879,1761284655547,10000.01,0.00020287,2]
[392257880,1761284655585,9560.5170772,0.00020287,2]
[392257881,1761284663054,439.4929228,0.00020535,2]
[392257882,1761284663093,4560.5070772,0.00020535,2]
[392257883,1761284664392,573.8,0.00020525,3]
[392257884,1761284667700,4865.7029228,0.00020284,2]
[392257885,1761284667737,10000.01,0.00020284,2]
[392257886,1761284667775,6606.9440555,0.00020284,2]
[392257887,1761284674246,163.38,0.00019581,2]
[392257888,1761284789986,196.0,0.00016,2]
[392257889,1761284790020,196.0,0.0001705,2]
[392257890,1761284799239,-293.08938649,0.000181,2]
[392257891,1761284822792,150.0,0.00018,2]
[392257892,1761284835353,150.0,0.0001454,30]
[392257893,1761284835769,150.0,0.00015232,30]
[392257894,1761284836236,216.08,0.00015924,30]
[392257895,1761284836669,288.1,0.00016617,30]
[392257896,1761284837108,360.13,0.00017309,30]
[392257897,1761284837526,432.15,0.00018002,30]
[392257898,1761284837962,504.18,0.00018694,30]
[392257899,1761284838444,576.2,0.00019386,30]
[392257900,1761284838874,648.23,0.00020079,30]
[392257901,1761284839330,636.31483226,0.00020771,30]
[392257902,1761284869549,-22.9906247,0.000181,2]
[392257903,1761284869605,-300.0,0.000181,2]
[392257904,1761284909891,196.0,0.00016,2]
[392257905,1761284909960,235.0808911,0.000181,2]
[392257906,1761284912313,150.0,0.00016103,30]
[392257907,1761284912732,150.0,0.00016869,30]
[392257908,1761284913135,151.25,0.00017636,30]
[392257909,1761284913631,201.67,0.00018403,30]
[392257910,1761284914174,252.09,0.0001917,30]
[392257911,1761284915020,302.51,0.00019937,30]
[392257912,1761284915527,352.92,0.00020703,30]
[392257913,1761284945285,-4000.30191359,0.00019158,2]
[392257914,1761284951155,-5000.0,0.00019352,2]
[392257915,1761284957183,-150.0,0.00019534,2]
[392257916,1761284957227,-214.36076563,0.0001956,2]
[392257917,1761284957269,-410.22054048,0.00019774,2]
[392257918,1761284957311,-159.77469719,0.0002,2]